bitfinex/quotes_ETHUSD_20251008
["timestamp","ask_amount","ask_price","bid_price","bid_amount"]
[1759884299914,3.21316956,4475.2,4475.1,3.88]
[1759884300079,2.61080007,4475.2,4475.1,3.88]
[1759884300285,0.69080007,4475.2,4475.1,6.11458693]
[1759884300484,0.69080007,4475.2,4475.1,6.95718693]
[1759884300485,0.002,4475.2,4475.1,6.95718693]
[1759884301087,0.002,4475.2,4475.1,1.0691]
[1759884301287,0.002,4475.2,4475.1,5.544]
[1759884301599,0.0499,4475.2,4475.1,0.681]
[1759884301804,0.0499,4475.2,4475.1,5.544]
[1759884302496,0.002,4475.2,4475.1,5.544]
[1759884303497,0.002,4475.2,4475.1,0.681]
[1759884303498,0.0499,4475.2,4475.1,0.681]
[1759884303679,21.528916,4475.2,4475.1,0.681]
[1759884303946,21.528916,4475.2,4475.1,3.746]
[1759884303947,7.56755731,4475.2,4475.1,3.746]
[1759884304611,2.65865731,4475.2,4475.1,3.746]
[1759884304913,7.38070231,4475.2,4475.1,3.746]
[1759884305126,2.61075731,4475.2,4475.1,3.746]
[1759884305422,5.31676792,4475.2,4475.1,3.746]
[1759884305598,11.89139292,4475.2,4475.1,3.746]
[1759884305778,11.89139292,4475.2,4475.1,0.681]
[1759884305979,12.97518669,4475.2,4475.1,0.681]
[1759884306179,5.96693969,4475.2,4475.1,4.084]
[1759884306514,2.13103592,4475.2,4475.1,4.084]
[1759884306709,0.21103592,4475.2,4475.1,4.084]
[1759884306909,0.21103592,4475.2,4475.1,4.10634586]
[1759884307130,0.002,4475.2,4475.1,4.10634586]
[1759884307289,0.002,4475.2,4475.1,4.084]
[1759884308398,5.367448,4475.2,4475.1,4.084]
[1759884308598,6.66034301,4475.2,4475.1,0.681]
[1759884308901,8.62824301,4475.2,4475.1,0.681]
[1759884309127,8.02609907,4475.2,4475.1,5.544]
[1759884309326,5.66274125,4475.2,4475.1,5.544]
[1759884309533,7.63111525,4475.2,4475.1,5.544]
[1759884310031,7.07658707,4475.2,4475.1,5.544]
[1759884310206,7.07658707,4475.2,4475.1,0.681]
[1759884310409,2.66065107,4475.2,4475.1,0.681]
[1759884310632,28.50392207,4475.2,4475.1,3.746]
[1759884311009,29.70737925,4475.2,4475.1,3.746]
[1759884311397,2.8682868,4474.9,4474.8,0.001]
[1759884311603,35.47903787,4474.9,4474.8,2.346]
[1759884311927,35.52693787,4474.9,4474.8,2.346]
[1759884312433,35.52693787,4474.9,4474.7,0.001]
[1759884312434,2.86853652,4474.4,4474.3,0.001]
[1759884312621,35.47928759,4474.4,4474.3,0.001]
[1759884312814,35.52718759,4474.4,4474.3,0.001]
[1759884313002,37.13388533,4474.4,4474.3,0.001]
[1759884313200,35.52718759,4474.4,4474.3,0.02]
[1759884313400,37.13388533,4474.4,4474.3,0.02]
[1759884313833,37.13388533,4474.4,4474.3,2.274]
[1759884314201,35.52718759,4474.4,4474.3,0.001]
[1759884314529,35.52718759,4474.4,4474.3,0.021]
[1759884314737,35.52718759,4474.4,4474.3,2.249]
[1759884314905,35.9639409,4474.4,4474.3,2.54]
[1759884315410,34.78863643,4474.2,4474.1,0.01]
[1759884315741,35.4793875,4474.2,4474.1,0.01]
[1759884315905,35.5272875,4474.2,4474.1,0.029]
[1759884316438,35.5272875,4474.2,4474.1,1.991]
[1759884317321,27.8740975,4474.2,4474.1,1.991]
[1759884317632,35.5272875,4474.2,4474.1,1.991]
[1759884318031,35.5272875,4474.2,4474.1,2.549]
[1759884318241,31.1701505,4474.2,4474.1,2.549]
[1759884318739,35.5272875,4474.2,4474.1,2.549]
[1759884319225,36.72681728,4474.2,4474.1,2.549]
[1759884319424,35.5272875,4474.2,4474.1,2.549]
[1759884320236,35.5272875,4474.2,4474.1,1e-08]
[1759884320410,34.78868638,4474.1,4474.0,1e-08]
[1759884320605,35.47943745,4474.1,4474.0,1.73900001]
[1759884320824,35.52733745,4474.1,4474.0,1.73900001]
[1759884322314,5.07841633,4474.1,4474.0,1.73900001]
[1759884322510,3.25150707,4474.1,4474.0,1.73900001]
[1759884322713,7.63906507,4474.1,4474.0,1.73900001]
[1759884322918,5.76696507,4474.1,4474.0,1.73900001]
[1759884323732,8.05148407,4474.1,4474.0,1.73900001]
[1759884323921,5.71838407,4474.1,4474.0,1.73900001]
[1759884324128,5.50934815,4474.1,4474.0,1.73900001]
[1759884324648,4.40740415,4474.1,4474.0,1.73900001]
[1759884325421,3.925689,4474.1,4474.0,1.73900001]
[1759884325751,4.015124,4474.1,4474.0,1.73900001]
[1759884325931,6.461123,4474.1,4474.0,1.73900001]
[1759884326349,1.92,4474.1,4474.0,1.73900001]
[1759884326722,1.07842554,4475.0,4474.0,1.73900001]
[1759884326927,0.002,4475.2,4474.0,1.91300001]
[1759884326928,0.1112,4474.3,4474.0,1.91300001]
[1759884327125,0.1112,4474.3,4474.1,0.23516]
[1759884327336,0.1112,4474.3,4474.1,2.49259064]
[1759884327635,0.1112,4474.3,4474.2,2.67263643]
[1759884328225,0.002,4475.2,4474.2,2.67263643]
[1759884328226,0.002,4475.2,4474.2,0.4376]
[1759884328422,0.1112,4475.0,4474.8,2.23469149]
[1759884328635,0.1112,4475.0,4474.9,2.541]
[1759884329966,0.1112,4475.0,4474.9,3.01857677]
[1759884330121,0.002,4475.2,4475.1,2.23458693]
[1759884330319,0.002,4475.2,4475.0,0.4376]
[1759884330519,0.002,4475.2,4475.1,4.868]
[1759884330714,0.002,4475.2,4474.9,0.47757677]
[1759884330950,0.1112,4474.9,4474.0,2.2351273]
[1759884331157,0.0479,4474.9,4474.1,4.868]
[1759884331358,0.1112,4474.2,4474.1,4.868]
[1759884332821,0.002,4474.6,4474.1,6.01602299]
[1759884333025,0.002,4474.6,4474.5,2.23488657]
[1759884333558,0.002,4474.6,4474.5,2.67248657]
[1759884335245,0.002,4474.6,4474.5,7.54148657]
[1759884335624,0.002,4474.6,4474.5,5.3066]
[1759884335851,0.002,4474.6,4474.5,8.29564363]
[1759884336167,0.002,4474.6,4474.5,5.62215706]
[1759884336458,0.002,4474.6,4474.5,3.42664363]
[1759884336625,0.002,4474.6,4474.5,8.29464363]
[1759884338060,0.002,4474.6,4474.5,7.85704363]
[1759884338233,0.002,4474.6,4474.3,0.0895174]
[1759884338438,0.002,4474.6,4474.4,4.867]
[1759884339471,0.002,4474.6,4474.5,2.25723543]
[1759884339640,0.002,4474.6,4474.5,4.88934886]
[1759884339840,0.002,4474.6,4474.5,7.10188657]
[1759884340059,0.002,4474.6,4474.5,7.55318657]
[1759884340968,0.002,4474.6,4474.5,6.29712027]
[1759884341497,0.002,4474.6,4474.5,5.84582027]
[1759884341642,0.002,4474.6,4474.5,8.08070684]
[1759884341970,0.002,4474.6,4474.5,5.84582027]
[1759884342169,0.002,4474.6,4474.5,4.867]
[1759884342373,0.002,4474.6,4474.5,2.325]
[1759884342572,0.002,4474.6,4474.5,4.868]
[1759884342871,0.002,4474.6,4474.0,1e-08]
[1759884342872,0.1112,4474.5,4474.0,1e-08]
[1759884343169,0.1112,4474.5,4474.1,4.868]
[1759884343470,0.1112,4474.5,4474.0,1e-08]
[1759884343669,0.002,4474.6,4474.1,4.868]
[1759884343670,0.1112,4474.2,4474.1,4.868]
[1759884344644,0.1112,4474.2,4474.0,1e-08]
[1759884344840,0.1591,4474.2,4474.1,4.59]
[1759884345045,0.1112,4474.2,4474.1,4.59]
[1759884348071,0.1112,4474.2,4474.0,1e-08]
[1759884348356,0.1112,4474.2,4474.1,4.483]
[1759884348549,0.1112,4474.2,4474.1,4.867]
[1759884348867,18.106462,4474.1,4474.0,1e-08]
[1759884349181,0.002,4474.6,4474.0,4.86800001]
[1759884349381,0.002,4474.6,4474.1,0.02235086]
[1759884349555,0.002,4474.6,4474.4,2.23490527]
[1759884349750,0.002,4474.6,4474.5,2.56534886]
[1759884349961,0.002,4474.6,4474.5,4.80023543]
[1759884350174,0.002,4474.6,4474.5,4.77788657]
[1759884350373,0.002,4474.6,4474.5,6.00123353]
[1759884352683,0.002,4475.0,4474.9,2.8682868]
[1759884352898,0.002,4475.2,4475.1,2.23458693]
[1759884353096,0.002,4475.2,4475.1,2.25693279]
[1759884353374,0.002,4475.2,4475.1,4.44412706]
[1759884353601,0.002,4475.2,4475.1,5.07772706]
[1759884353911,0.002,4475.2,4475.1,9.5193812]
[1759884354074,0.002,4475.2,4475.1,8.8857812]
[1759884354908,0.002,4475.5,4475.4,4.15443714]
[1759884355217,0.002,4475.5,4475.4,6.16563129]
[1759884355380,0.002,4475.5,4475.4,4.62903714]
[1759884355575,0.002,4475.5,4475.4,9.49803714]
[1759884355782,0.002,4475.5,4475.4,2.70903714]
[1759884356014,0.002,4475.5,4475.4,7.57803714]
[1759884356533,0.002,4475.5,4475.4,2.70903714]
[1759884356706,0.002,4475.5,4475.4,8.07239455]
[1759884357386,0.002,4475.5,4475.4,5.83795741]
[1759884357709,0.002,4475.5,4475.4,0.96895741]
[1759884358015,0.002,4475.5,4475.4,7.57703714]
[1759884358978,0.002,4475.5,4475.4,5.3426]
[1759884359175,0.002,4475.5,4475.4,4.868]
[1759884359503,0.002,4475.5,4475.4,5.3426]
[1759884359707,0.002,4475.5,4475.4,7.57703714]
[1759884360311,0.002,4475.5,4475.4,8.56931179]
[1759884361093,0.002,4475.5,4475.4,1.46687465]
[1759884361320,0.002,4475.5,4475.4,7.57703714]
[1759884361613,0.002,4475.5,4475.4,5.3426]
[1759884361827,0.002,4475.5,4475.4,0.4746]
[1759884362127,0.002,4475.5,4475.4,7.59938151]
[1759884362293,0.002,4475.5,4475.4,8.56042822]
[1759884363022,0.01,4476.9,4475.4,8.56042822]
[1759884363023,0.01,4476.9,4475.6,2.23430888]
[1759884363230,0.01,4476.9,4476.8,2.23373838]
[1759884363512,0.01,4476.9,4476.8,4.79907576]
[1759884363813,0.01,4476.9,4476.8,5.95462696]
[1759884364044,0.01,4476.9,4476.8,3.41162696]
[1759884364184,0.01,4476.9,4476.8,8.27962696]
[1759884365090,0.01,4478.9,4477.2,0.6336]
[1759884365328,0.01,4478.9,4477.6,2.5536]
[1759884365514,0.01,4478.9,4478.8,2.23274091]
[1759884365714,0.01,4478.9,4477.8,0.6336]
[1759884365917,0.01,4478.9,4478.2,0.4746]
[1759884366134,0.01,4478.9,4478.3,4.875]
[1759884366296,0.01,4478.9,4478.2,2.70762391]
[1759884366297,0.01,4478.9,4478.4,0.0223294]
[1759884366497,0.0639,4478.9,4478.5,4.875]
[1759884366721,0.0639,4478.9,4478.6,2.551]
[1759884367004,0.01,4478.9,4478.7,0.0223279]
[1759884367227,0.0539,4478.8,4477.3,0.4746]
[1759884367429,0.01,4478.9,4477.4,4.874]
[1759884367718,0.01,4478.9,4477.5,7.10737931]
[1759884368119,0.01,4478.9,4477.6,0.49693339]
[1759884368321,0.01,4478.9,4478.3,2.23298985]
[1759884368633,0.01,4478.9,4478.4,2.5723294]
[1759884368834,0.01,4478.9,4478.4,3.0469294]
[1759884368997,0.01,4478.9,4478.5,0.4746]
[1759884369201,0.01,4478.9,4478.6,0.0223284]
[1759884369519,0.01,4478.9,4478.0,0.4746]
[1759884369717,0.01,4478.9,4478.7,2.324]
[1759884369906,0.01,4478.9,4478.8,2.549]
[1759884370728,0.1112,4478.8,4478.0,2.81891163]
[1759884370929,0.1112,4478.8,4478.0,0.5858]
[1759884371229,0.1112,4478.8,4478.1,4.873]
[1759884371397,0.01,4478.9,4478.1,4.873]
[1759884371398,0.01,4478.9,4478.2,4.873]
[1759884371598,0.01,4478.9,4478.3,0.0223299]
[1759884371804,0.01,4479.9,4478.5,0.6336]
[1759884372003,0.01,4479.9,4479.6,2.23233342]
[1759884372223,0.01,4479.9,4479.7,2.549]
[1759884372408,0.01,4479.9,4479.8,2.57132242]
[1759884372610,0.01,4479.9,4479.8,4.80356493]
[1759884372805,0.01,4479.9,4479.8,5.95943181]
[1759884373001,0.01,4479.9,4479.1,0.4746]
[1759884373206,0.01,4479.9,4479.2,4.874]
[1759884373505,0.01,4479.9,4479.3,0.02232491]
[1759884373705,9.421056,4479.8,4477.8,0.4746]
[1759884373941,1.9839,4479.7,4477.8,0.4746]
[1759884374239,1.92,4479.5,4477.9,4.89933189]
[1759884374426,0.0639,4479.7,4478.1,2.2330871]
[1759884374606,2.29620371,4479.7,4478.2,0.0223304]
[1759884374940,2.29620371,4479.7,4477.2,2.49055011]
[1759884374941,0.6336,4479.3,4478.3,4.876]
[1759884375136,1.92,4479.1,4478.4,2.5753294]
[1759884375306,1.92,4479.4,4478.4,2.5753294]
[1759884375510,1.92,4479.0,4478.4,2.553]
[1759884375836,1.92,4479.3,4478.4,2.553]
[1759884376140,6.271065,4479.2,4478.4,2.553]
[1759884376513,2.458368,4479.5,4478.5,0.0223289]
[1759884376702,11.81262,4479.6,4478.5,0.0223289]
[1759884376907,11.636301,4479.4,4478.6,4.876]
[1759884377209,12.793592,4479.2,4478.6,4.876]
[1759884377409,10.877791,4479.2,4478.6,4.876]
[1759884377640,10.877791,4479.2,4477.6,0.4536]
[1759884377843,0.0639,4479.1,4477.1,2.334]
[1759884378045,14.143343,4478.7,4477.2,4.876]
[1759884378245,8.240414,4478.6,4477.2,7.10952022]
[1759884378420,7.007497,4478.6,4477.3,2.23348027]
[1759884378609,0.0639,4479.0,4477.4,0.97468985]
[1759884378814,1.92,4478.7,4477.4,2.23343764]
[1759884379015,4.990384,4478.6,4477.5,4.876]
[1759884379235,1.92,4478.8,4477.4,2.23343764]
[1759884379546,4.228633,4478.7,4477.6,4.876]
[1759884379719,4.228633,4478.7,4477.2,0.4536]
[1759884379923,1.92,4478.4,4477.1,2.334]
[1759884380124,30.0,4478.5,4477.2,4.875]
[1759884380125,16.972431,4478.2,4477.2,4.875]
[1759884380320,16.972431,4478.2,4477.1,2.334]
[1759884380321,16.972431,4478.2,4477.3,2.323]
[1759884380615,1.92,4477.7,4477.4,4.875]
[1759884380835,0.0639,4478.1,4477.4,4.875]
[1759884381154,6.05656,4478.1,4477.5,0.02233389]
[1759884381317,0.20757575,4478.0,4477.5,0.02233389]
[1759884381518,0.1112,4477.5,4477.1,0.01]
[1759884381738,9.746315,4477.7,4477.2,4.875]
[1759884381923,1.92,4477.7,4477.3,4.875]
[1759884382125,1.92,4478.1,4477.1,0.01]
[1759884382451,9.577427,4477.7,4477.2,4.875]
[1759884382746,9.577427,4477.7,4477.1,0.01]
[1759884382947,0.1112,4477.6,4477.2,5.3286]
[1759884383247,0.1112,4477.6,4477.3,0.47593488]
[1759884383547,0.59898848,4479.0,4477.4,0.4536]
[1759884383847,0.20783386,4478.9,4478.1,2.23308884]
[1759884384141,0.1112,4478.5,4478.2,5.26195969]
[1759884384349,0.1112,4478.5,4478.3,3.0066]
[1759884384517,0.1112,4478.5,4478.4,0.0223294]
[1759884384713,0.1112,4478.5,4478.4,0.4759294]
[1759884385113,0.1112,4478.5,4478.3,2.553]
[1759884385313,1.92,4479.3,4478.3,2.553]
[1759884385518,0.20789813,4479.2,4478.1,2.23307988]
[1759884385744,0.20789813,4479.2,4478.0,2.68670675]
[1759884385915,0.20789813,4479.1,4478.1,4.876]
[1759884386116,0.20789813,4479.0,4478.1,4.876]
[1759884386317,0.20994563,4478.9,4478.2,4.876]
[1759884386517,0.002,4478.9,4478.0,2.68670675]
[1759884386731,0.002,4478.9,4478.3,4.876]
[1759884388136,0.002,4478.9,4478.0,2.68672128]
[1759884388330,0.002,4478.9,4478.4,4.875]
[1759884388516,0.002,4478.9,4478.0,0.4536]
[1759884388713,0.20994576,4478.9,4478.1,4.875]
[1759884388939,0.20794576,4478.8,4478.7,2.23279076]
[1759884389163,0.79878607,4479.6,4478.7,2.23279076]
[1759884389164,0.01,4479.9,4478.7,3.0066]
[1759884389472,0.01,4479.9,4478.8,0.30066]
[1759884389618,0.01,4479.9,4478.1,0.4875]
[1759884389619,0.01,4479.9,4478.9,4.885]
[1759884389817,0.01,4479.9,4479.0,4.885]
[1759884390018,11.995449,4479.8,4479.1,2.323]
[1759884390219,13.191489,4479.6,4479.1,4.885]
[1759884390448,0.68787454,4479.5,4479.1,4.885]
[1759884390752,0.20817419,4479.4,4479.1,4.885]
[1759884391062,0.27407419,4479.3,4479.2,4.885]
[1759884391563,8.632149,4479.6,4479.2,4.885]
[1759884391766,0.75377454,4479.5,4479.3,4.885]
[1759884391922,0.20817419,4479.4,4478.2,2.23299261]
[1759884392123,0.20817419,4479.4,4477.8,0.4536]
[1759884392124,0.20817419,4479.3,4477.8,0.4536]
[1759884392455,9.397989,4479.1,4478.0,2.2330989]
[1759884392653,0.68787454,4479.0,4477.9,3.157]
[1759884392858,0.66488848,4479.2,4477.9,3.157]
[1759884392859,0.20817419,4478.9,4478.0,2.23309017]
[1759884393063,0.20817419,4478.8,4477.6,0.4536]
[1759884393240,0.20817419,4478.7,4477.9,2.23318715]
[1759884393440,0.20817419,4478.6,4478.0,4.885]
[1759884393778,0.20855535,4478.5,4477.8,2.23323582]
[1759884393927,0.59898848,4479.0,4477.9,4.884]
[1759884394130,0.20855768,4478.9,4477.9,4.884]
[1759884394332,0.20855768,4478.9,4478.0,2.25547118]
[1759884394732,0.20855768,4478.9,4478.0,0.02233139]
[1759884394933,0.20855768,4478.9,4477.8,0.49202229]
[1759884394934,0.20855768,4478.9,4478.1,0.53983537]
[1759884395152,0.1112,4478.1,4477.1,0.4646]
[1759884395371,0.1112,4477.8,4477.4,2.23343157]
[1759884395671,0.1112,4477.8,4477.2,3.312]
[1759884395672,0.1112,4477.8,4477.5,2.25570586]
[1759884395854,0.1112,4477.8,4477.6,2.45890455]
[1759884396028,0.1112,4477.8,4477.7,2.58333289]
[1759884396549,0.1112,4477.8,4477.1,0.011]
[1759884396855,0.0659,4478.3,4477.1,0.011]
[1759884396856,0.1112,4477.3,4477.2,4.425]
[1759884399650,0.1112,4477.3,4477.1,0.011]
[1759884399875,2.359785,4477.7,4477.2,2.811]
[1759884400183,0.20859763,4477.6,4477.2,2.811]
[1759884400357,0.20859763,4477.5,4477.2,2.811]
[1759884400558,0.59898848,4477.9,4477.2,2.811]
[1759884400559,0.20859763,4477.4,4477.2,2.811]
[1759884400772,0.47970035,4477.6,4477.2,2.811]
[1759884401091,0.20855472,4477.5,4477.2,2.811]
[1759884401277,0.20855472,4477.4,4477.2,2.811]
[1759884401485,0.59898848,4477.9,4477.2,2.811]
[1759884401653,0.20850915,4477.8,4477.2,2.811]
[1759884402795,1.92,4477.6,4477.1,0.011]
[1759884403081,0.20850915,4477.5,4477.1,0.011]
[1759884403258,2.19440915,4477.5,4477.2,2.705]
[1759884403448,0.27440915,4477.4,4477.3,4.882]
[1759884403653,0.20850915,4477.4,4477.1,0.011]
[1759884403888,0.20850915,4477.3,4477.2,4.882]
[1759884404181,0.20850915,4477.6,4477.2,4.882]
[1759884404571,0.20850915,4477.6,4477.1,0.011]
[1759884404751,0.20850915,4477.6,4477.2,4.882]
[1759884405358,0.20850915,4477.5,4477.2,4.882]
[1759884405683,0.20850915,4477.4,4477.2,4.882]
[1759884405861,0.59898848,4477.8,4477.2,4.882]
[1759884405862,0.20850915,4477.3,4477.2,4.882]
[1759884406181,0.20850915,4477.7,4477.2,4.882]
[1759884407584,0.20850915,4477.6,4477.2,4.882]
[1759884407786,0.20850915,4477.5,4477.2,4.882]
[1759884408088,0.47970035,4478.2,4477.3,0.48233488]
[1759884408253,2.06866,4478.6,4477.3,0.48233488]
[1759884408455,0.20845484,4478.5,4477.9,2.23314202]
[1759884408765,0.48170035,4478.9,4477.2,5.3713]
[1759884408766,0.002,4478.9,4478.0,4.81344871]
[1759884408966,0.21044237,4478.9,4478.1,0.46]
[1759884409159,0.20844237,4478.8,4478.3,2.23296717]
[1759884409359,0.002,4478.9,4478.4,2.5803294]
[1759884409683,0.002,4478.9,4478.4,4.81322916]
[1759884409983,0.002,4478.9,4478.4,4.79089976]
[1759884409984,0.1112,4478.5,4478.4,4.79089976]
[1759884410185,0.1112,4478.5,4478.4,2.558]
[1759884410484,0.1112,4478.5,4478.4,4.882]
[1759884412197,0.1112,4478.5,4478.4,5.342]
[1759884412583,0.1112,4478.5,4477.9,0.46]
[1759884412766,0.1112,4478.5,4478.4,2.324]
[1759884412970,0.1112,4478.5,4478.4,7.57394033]
[1759884413182,0.002,4478.9,4478.4,6.10062712]
[1759884413387,0.002,4478.9,4478.5,1.1159289]
[1759884413688,0.002,4478.9,4478.8,2.23274091]
[1759884413890,0.002,4478.9,4478.8,4.81306831]
[1759884414092,0.002,4478.9,4478.8,6.0646918]
[1759884414505,0.002,4478.9,4478.8,6.6982918]
[1759884414884,0.002,4478.9,4478.8,21.1982918]
[1759884415702,0.002,4478.9,4478.8,18.0066918]
[1759884415997,0.002,4478.9,4478.8,22.8886918]
[1759884417977,0.002,4478.9,4478.8,8.3886918]
[1759884418364,0.002,4478.9,4478.8,22.8886918]
[1759884420407,0.002,4478.9,4478.8,23.5222918]
[1759884421288,0.002,4478.9,4478.8,9.0222918]
[1759884421490,0.002,4478.9,4478.8,10.9422918]
[1759884422002,0.002,4478.9,4478.8,20.5602918]
[1759884422207,0.002,4478.9,4478.8,19.9266918]
[1759884422414,0.002,4478.9,4478.8,18.0066918]
[1759884422578,0.002,4478.9,4478.8,7.57174091]
[1759884423204,0.002,4478.9,4478.8,7.68294091]
[1759884424496,0.002,4478.9,4478.8,2.80394091]
[1759884424705,0.002,4478.9,4478.8,7.68194091]
[1759884426397,0.002,4478.9,4478.8,2.80394091]
[1759884426594,0.002,4478.9,4478.8,2.84761906]
[1759884426796,0.002,4478.9,4478.8,7.22094091]
[1759884427200,0.002,4478.9,4478.8,7.68094091]
[1759884427986,0.002,4478.9,4478.8,7.22094091]
[1759884428404,0.002,4478.9,4478.8,7.68094091]
[1759884428803,0.002,4478.9,4478.8,5.4482]
[1759884429121,0.002,4478.9,4478.8,7.68094091]
[1759884429321,0.002,4478.9,4478.8,8.17300271]
[1759884429821,0.002,4478.9,4478.8,7.60080271]
[1759884430204,0.002,4478.9,4478.8,8.06080271]
[1759884430404,0.01,4479.9,4478.9,2.23269106]
[1759884430606,0.14085205,4480.3,4479.8,2.34344251]
[1759884430804,0.14085205,4480.3,4480.2,2.34324321]
[1759884431126,0.14085205,4480.3,4479.9,0.1112]
[1759884431287,0.14085205,4480.3,4480.0,4.876]
[1759884431491,0.25205205,4480.3,4480.1,2.553]
[1759884431723,0.25205205,4480.3,4480.2,2.23204321]
[1759884431923,0.25205205,4480.3,4479.6,0.1112]
[1759884432230,0.25205205,4480.3,4479.7,4.876]
[1759884432231,0.1112,4480.0,4479.7,4.876]
[1759884432427,0.1112,4480.0,4479.8,4.876]
[1759884432631,0.1112,4480.0,4479.9,2.553]
[1759884432835,0.1112,4480.0,4479.9,2.57532192]
[1759884433043,0.14085205,4480.3,4479.9,2.57532192]
[1759884433044,0.14085205,4480.3,4480.2,2.23204321]
[1759884433208,0.14085205,4480.3,4480.2,0.02232043]
[1759884433405,0.14085205,4480.3,4480.2,4.875]
[1759884433714,0.14085205,4480.3,4479.2,0.46]
[1759884433914,0.14085205,4480.3,4479.2,0.72925415]
[1759884434133,0.14085205,4480.3,4479.7,2.23227201]
[1759884434417,0.14085205,4480.3,4480.2,2.23204321]
[1759884434617,0.14085205,4480.3,4480.2,4.80736364]
[1759884434824,0.14085205,4480.3,4480.2,5.24504321]
[1759884435207,0.14085205,4480.3,4480.2,5.992759]
[1759884435529,0.14085205,4480.3,4480.2,5.24504321]
[1759884436136,0.14085205,4480.3,4480.2,4.874]
[1759884436299,0.14085205,4480.3,4480.2,7.10604321]
[1759884436499,0.14085205,4480.3,4480.2,4.874]
[1759884436738,0.14085205,4480.3,4480.2,7.10604321]
[1759884437416,0.14085205,4480.3,4480.2,2.23204321]
[1759884437594,0.14085205,4480.3,4480.2,7.12836364]
[1759884437801,0.14085205,4480.3,4480.2,4.874]
[1759884438001,0.14085205,4480.3,4480.2,7.10604321]
[1759884438409,0.14085205,4480.3,4480.2,7.81664753]
[1759884438610,0.14085205,4480.3,4480.2,3.40194753]
[1759884438811,0.14085205,4480.3,4480.2,7.58766364]
[1759884439015,0.14085205,4480.3,4480.2,7.56534321]
[1759884440836,0.14085205,4480.3,4480.2,2.69134321]
[1759884441039,0.14085205,4480.3,4479.6,0.4593]
[1759884441205,0.14085205,4480.3,4480.2,2.23204321]
[1759884441406,0.14085205,4480.3,4480.2,7.10504321]
[1759884441605,0.14085205,4480.3,4479.6,0.4593]
[1759884441835,0.14285205,4480.3,4479.7,4.873]
[1759884442021,0.14285205,4480.3,4479.6,0.4593]
[1759884442222,0.14285205,4480.3,4480.2,2.23204321]
[1759884442441,0.14285205,4480.3,4480.2,4.78304321]
[1759884442635,0.14285205,4480.3,4480.2,2.551]
[1759884443348,0.14285205,4480.3,4480.2,5.26466364]
[1759884443549,0.14285205,4480.3,4480.2,5.24234321]
[1759884443848,0.1112,4481.2,4480.8,2.23174433]
[1759884444145,0.1112,4481.2,4480.8,4.80506177]
[1759884444380,0.1112,4481.2,4480.8,5.24204433]
[1759884445327,0.01,4481.9,4480.8,2.23174433]
[1759884445529,0.01,4481.9,4478.6,9.58511769]
[1759884445530,0.2108,4481.8,4480.5,2.23184595]
[1759884445712,0.2108,4481.8,4480.3,2.23195583]
[1759884445713,0.2108,4481.6,4480.3,2.23195583]
[1759884445918,0.20861402,4481.5,4480.4,4.873]
[1759884446124,0.20861402,4481.5,4479.7,0.4593]
[1759884446329,0.2108,4481.3,4479.8,4.331]
[1759884446624,0.20861402,4481.2,4479.8,6.56324251]
[1759884446934,0.2108,4481.0,4479.9,7.10518833]
[1759884447134,0.21861402,4480.9,4479.9,2.23218833]
[1759884447334,0.21861402,4480.9,4480.0,4.873]
[1759884447543,0.21861402,4480.9,4480.0,7.10514088]
[1759884447912,0.21861402,4480.9,4480.0,4.873]
[1759884448156,0.21861402,4480.9,4480.0,7.10510481]
[1759884448351,0.20861402,4480.8,4480.0,7.10510481]
[1759884448513,0.20861402,4480.7,4479.9,2.23218169]
[1759884448717,0.01,4480.9,4480.1,7.10508518]
[1759884449034,0.01,4480.9,4480.2,4.89532043]
[1759884449243,0.01,4480.9,4480.2,4.873]
[1759884450446,0.01,4480.9,4479.3,0.4593]
[1759884450648,19.429295,4480.7,4478.6,0.4593]
[1759884450862,0.59898848,4480.1,4478.2,0.4593]
[1759884451163,1.92,4479.8,4478.9,2.725]
[1759884451369,0.20871545,4479.7,4479.0,4.872]
[1759884451688,0.2108,4479.6,4478.1,2.24306752]
[1759884451952,0.20871545,4479.5,4478.1,0.01]
[1759884452428,0.20871545,4479.5,4478.9,4.872]
[1759884452626,0.20871545,4479.5,4478.3,0.001]
[1759884452830,0.2108,4479.4,4478.9,2.322]
[1759884453156,0.41951545,4479.3,4479.0,2.55]
[1759884453474,0.41951545,4479.2,4478.3,0.001]
[1759884453762,4.36132323,4479.1,4478.9,4.872]
[1759884453925,0.89813833,4479.0,4478.9,4.872]
[1759884454127,0.41951545,4479.0,4478.9,4.872]
[1759884455766,0.41951545,4479.0,4478.3,0.001]
[1759884456067,0.53071545,4478.9,4478.3,0.001]
[1759884456274,0.53071545,4478.9,4478.8,4.873]
[1759884456638,0.53071545,4478.9,4478.8,0.001]
[1759884456839,28.62405751,4478.9,4478.8,0.001]
[1759884457039,29.10268039,4478.9,4478.8,2.323]
[1759884457247,29.70166887,4478.9,4478.8,3.05]
[1759884457467,21.64613339,4478.9,4478.8,3.05]
[1759884457647,21.85693339,4478.9,4478.8,3.05]
[1759884458001,24.66350839,4478.9,4478.8,3.05]
[1759884458135,22.94352839,4478.9,4478.8,3.05]
[1759884458956,25.17569039,4478.9,4478.8,3.05]
[1759884459247,25.17569039,4478.9,4478.8,0.001]
[1759884459582,25.17569039,4478.9,4478.8,4.393]
[1759884460088,31.23546039,4478.9,4478.8,4.873]
[1759884460293,29.00276933,4478.9,4478.8,4.873]
[1759884460498,5.46955233,4478.9,4478.8,0.001]